bitfinex/quotes_SOLUSD_20251130
["timestamp","ask_amount","ask_price","bid_price","bid_amount"]
[1764509459019,3.2,139.18,139.1,9.09426806]
[1764509459212,7.18494036,139.18,139.1,9.09426806]
[1764509459415,11.08454235,139.19,139.1,9.09426806]
[1764509459833,11.08454235,139.19,139.1,12.29426806]
[1764509460052,29.04560277,139.19,139.11,7.18855581]
[1764509460233,25.84560277,139.19,139.12,9.09426806]
[1764509460535,7.18454235,139.19,139.12,25.40313206]
[1764509460742,7.18454235,139.19,139.12,46.98974835]
[1764509460941,7.18375804,139.21,139.12,46.98974835]
[1764509461937,17.95769922,139.22,139.13,25.15632861]
[1764509462147,0.7,139.21,139.14,3.2]
[1764509462329,0.7,139.21,139.13,25.15632861]
[1764509463134,7.18390804,139.2,139.13,25.15632861]
[1764509465434,7.18390804,139.2,139.13,87.95632861]
[1764509466619,25.14367815,139.2,139.13,87.95632861]
[1764509469250,28.34367815,139.2,139.13,87.95632861]
[1764509469433,7.18494036,139.18,139.13,69.98752246]
[1764509470327,11.78742628,139.19,139.13,69.98752246]
[1764509471818,12.48742628,139.19,139.13,69.98752246]
[1764509472018,7.88448523,139.19,139.13,69.98752246]
[1764509474146,0.7,139.18,139.13,69.98752246]
[1764509474448,0.7,139.18,139.13,62.8]
[1764509475081,7.18545663,139.17,139.13,62.8]
[1764509475423,0.7,139.16,139.13,62.8]
[1764509475947,19.508864,139.2,139.13,0.12]
[1764509475948,4.59450995,139.19,139.13,0.12]
[1764509476256,11.08407444,139.2,139.12,3.2]
[1764509476423,3.9,139.2,139.12,3.32]
[1764509476628,8.52056227,139.2,139.12,3.32]
[1764509476842,11.08396819,139.2,139.12,3.32]
[1764509477360,11.08396819,139.2,139.13,7.18752246]
[1764509478035,29.0437383,139.2,139.13,7.18752246]
[1764509478457,4.61117794,139.19,139.12,3.32]
[1764509478753,4.61117794,139.19,139.12,28.47807768]
[1764509479159,7.88396819,139.2,139.13,9.09426806]
[1764509479465,7.88396819,139.2,139.14,7.18700589]
[1764509479635,0.7,139.23,139.15,12.29426806]
[1764509479955,4.66792492,139.22,139.15,12.29426806]
[1764509480456,5.36792492,139.21,139.15,3.2]
[1764509480638,0.7,139.21,139.15,3.2]
[1764509480838,0.7,139.2,139.15,3.2]
[1764509481141,16.308864,139.17,139.05,0.32]
[1764509481354,16.308864,139.14,139.05,7.39148193]
[1764509481563,4.50298946,139.13,139.05,7.39148193]
[1764509481865,4.50298946,139.13,139.06,0.12]
[1764509481866,4.50298946,139.12,139.06,0.12]
[1764509482047,7.70298946,139.12,139.06,0.12]
[1764509482248,3.2,139.12,139.06,0.12]
[1764509482740,3.88,139.12,139.06,0.12]
[1764509482944,7.86889154,139.11,139.06,7.19073018]
[1764509483364,7.86889154,139.11,139.06,7.31073018]
[1764509483735,0.68,139.1,139.06,7.19073018]
[1764509484968,7.18889154,139.11,139.07,0.12]
[1764509485670,7.85785017,139.13,139.07,9.21426806]
[1764509485840,7.18785017,139.13,139.07,9.21426806]
[1764509486040,7.18785017,139.13,139.08,0.12]
[1764509486370,52.23402381,139.18,139.1,9.09426806]
[1764509486371,17.96402338,139.17,139.1,9.09426806]
[1764509486675,7.18612988,139.16,139.1,9.09426806]
[1764509486872,7.18612988,139.16,139.11,0.12]
[1764509487270,7.85612988,139.16,139.11,0.12]
[1764509487662,7.85612988,139.16,139.11,7.30807197]
[1764509488384,0.67,139.15,139.11,7.18807197]
[1764509489078,18.63402338,139.17,139.11,7.30807197]
[1764509489386,0.67,139.16,139.11,7.30807197]
[1764509491363,0.67,139.16,139.11,174.60807197]
[1764509491563,7.85603958,139.16,139.11,174.48807197]
[1764509492079,0.67,139.15,139.11,174.48807197]
[1764509492257,7.8568317,139.15,139.11,174.48807197]
[1764509493374,0.67,139.14,139.11,174.48807197]
[1764509493676,0.67,139.15,139.11,69.98807197]
[1764509493878,0.67,139.15,139.11,70.10807197]
[1764509494772,7.18494036,139.18,139.12,0.12]
[1764509494773,7.85494036,139.18,139.12,0.12]
[1764509494954,0.67,139.21,139.13,25.11880892]
[1764509495155,0.67,139.21,139.14,0.28432314]
[1764509495358,0.67,139.21,139.15,0.12]
[1764509495981,7.85375575,139.21,139.16,7.18597298]
[1764509496480,0.67,139.2,139.16,7.18597298]
[1764509497182,7.18442416,139.19,139.13,8.80994492]
[1764509497362,7.85406556,139.2,139.13,9.09426806]
[1764509497557,7.85297825,139.22,139.14,0.12]
[1764509497784,7.85297825,139.22,139.15,3.2]
[1764509498258,7.85297825,139.22,139.16,0.12]
[1764509498454,7.85297825,139.22,139.17,7.18545663]
[1764509498659,7.85230097,139.24,139.18,3.2]
[1764509498883,7.18081286,139.26,139.19,9.09426806]
[1764509499081,0.67,139.26,139.19,9.21426806]
[1764509499283,7.18047501,139.27,139.2,0.12]
[1764509499579,5.36531147,139.28,139.22,9.09426806]
[1764509499769,0.67,139.28,139.22,9.09426806]
[1764509499961,7.84987147,139.28,139.22,0.12]
[1764509500468,7.84987147,139.28,139.22,7.30270759]
[1764509502852,0.67,139.27,139.22,7.30270759]
[1764509503475,0.67,139.27,139.22,7.18270759]
[1764509503854,0.67,139.27,139.22,7.30270759]
[1764509504660,7.85079263,139.27,139.22,70.10270759]
[1764509505186,16.308864,139.24,139.15,0.12]
[1764509505480,0.67,139.23,139.15,0.12]
[1764509505662,5.32063338,139.26,139.16,16.308864]
[1764509505864,5.32063338,139.26,139.15,0.12]
[1764509505865,0.67,139.26,139.17,3.2]
[1764509506175,0.67,139.25,139.17,3.2]
[1764509506471,0.67,139.25,139.19,0.28432314]
[1764509506671,4.6595212,139.26,139.2,15.99385296]
[1764509506982,16.308864,139.28,139.2,15.99385296]
[1764509506983,0.67,139.28,139.21,12.29426806]
[1764509507183,0.67,139.27,139.21,12.41426806]
[1764509507487,7.18028049,139.28,139.22,0.12]
[1764509507784,0.67,139.29,139.22,16.428864]
[1764509508167,2.24159056,139.3,139.23,9.21426806]
[1764509508684,2.24159056,139.3,139.24,0.12]
[1764509508862,2.24159056,139.3,139.25,28.3346499]
[1764509509370,0.67,139.29,139.25,28.3346499]
[1764509509973,7.84926627,139.29,139.25,3.2]
[1764509510287,0.67,139.28,139.22,7.18253119]
[1764509510474,0.67,139.28,139.22,62.8]
[1764509510680,0.67,139.28,139.21,62.8]
[1764509510982,0.67,139.28,139.22,8.92994492]
[1764509511176,2.24159056,139.3,139.23,3.60432314]
[1764509511564,2.91159056,139.3,139.24,0.12]
[1764509511756,2.24159056,139.3,139.25,9.09426806]
[1764509512188,2.24159056,139.3,139.26,0.12]
[1764509512483,2.24159056,139.3,139.27,3.2]
[1764509512881,2.24159056,139.3,139.28,7.17978173]
[1764509514588,2.24159056,139.3,139.27,10.50011712]
[1764509514890,2.24159056,139.3,139.28,0.12]
[1764509515286,2.24159056,139.3,139.27,10.38011712]
[1764509515485,2.24159056,139.3,139.27,10.50011712]
[1764509515879,2.24159056,139.3,139.28,9.21426806]
[1764509516085,2.24159056,139.3,139.29,0.12]
[1764509516288,2.24159056,139.3,139.28,9.21426806]
[1764509516666,2.24159056,139.3,139.28,9.09426806]
[1764509516888,2.24159056,139.3,139.28,16.39402205]
[1764509517089,2.24159056,139.3,139.28,183.69402205]
[1764509517470,2.24159056,139.3,139.28,183.57402205]
[1764509517781,2.24159056,139.3,139.28,167.3]
[1764509517984,2.24159056,139.3,139.28,174.47966071]
[1764509518370,2.24159056,139.3,139.29,9.21426806]
[1764509518568,2.24159056,139.3,139.28,70.09966071]
[1764509518783,2.24159056,139.3,139.28,69.97966071]
[1764509519589,2.24159056,139.3,139.28,70.09966071]
[1764509520294,2.24159056,139.3,139.28,69.97966071]
[1764509520602,2.24159056,139.3,139.28,70.09966071]
[1764509521369,2.24159056,139.3,139.28,69.97966071]
[1764509521569,2.24159056,139.3,139.29,7.29926627]
[1764509521992,2.24159056,139.3,139.29,7.17926627]
[1764509524300,2.96159056,139.3,139.29,69.97926627]
[1764509524608,10.14056345,139.3,139.21,0.12]
[1764509524893,2.24159056,139.3,139.23,3.2]
[1764509525079,2.24159056,139.3,139.24,9.09426806]
[1764509525280,2.24159056,139.3,139.26,9.09426806]
[1764509525482,2.24159056,139.3,139.27,3.2]
[1764509525679,2.96159056,139.3,139.27,3.2]
[1764509526294,0.72,139.29,139.27,3.2]
[1764509526698,0.72,139.29,139.25,10.38132854]
[1764509527200,0.72,139.29,139.21,17.95777017]
[1764509527374,0.72,139.29,139.22,8.80994492]
[1764509527581,25.84772674,139.29,139.21,28.34116216]
[1764509527985,0.72,139.28,139.21,28.34116216]
[1764509528899,7.18029726,139.27,139.21,28.34116216]
[1764509529274,0.72,139.26,139.19,7.18405437]
[1764509530488,3.92,139.26,139.17,3.2]
[1764509530881,25.13645503,139.24,139.17,10.38528897]
[1764509531277,0.72,139.23,139.17,10.38528897]
[1764509532994,7.18287602,139.22,139.17,10.38528897]
[1764509533299,0.72,139.23,139.17,10.38528897]
[1764509533489,0.72,139.22,139.17,10.38528897]
[1764509533876,0.72,139.25,139.18,9.09426806]
[1764509534099,0.72,139.25,139.17,3.2]
[1764509534309,0.72,139.25,139.17,10.38543482]
[1764509534523,0.72,139.25,139.17,3.2]
[1764509534524,17.028864,139.25,139.17,3.2]
[1764509534810,17.028864,139.25,139.16,7.18593506]
[1764509534991,25.85645503,139.24,139.16,7.18593506]
[1764509535394,0.72,139.23,139.16,7.18593506]
[1764509536384,7.18287602,139.22,139.16,7.18593506]
[1764509536885,0.72,139.21,139.16,7.18593506]
[1764509537280,7.90369465,139.21,139.16,7.18593506]
[1764509537682,0.72,139.2,139.16,7.18593506]
[1764509539207,0.72,139.23,139.17,12.41426806]
[1764509539591,17.94954035,139.28,139.18,0.12]
[1764509539903,0.72,139.26,139.19,9.09426806]
[1764509540089,7.89926627,139.29,139.23,8.80994492]
[1764509540294,16.2996561,139.54,139.26,16.308864]
[1764509540494,16.00106133,139.76,139.75,71.69417076]
[1764509540695,5.98706887,139.91,139.74,3.4]
[1764509540911,110.57634429,140.1,139.57,17.24]
[1764509540912,4.78615031,139.9,139.77,75.0]
[1764509541128,19.45970837,140.02,139.82,20.11495489]
[1764509541413,19.45970837,140.02,139.78,4.63130211]
[1764509541414,0.56261812,140.02,139.99,35.3596143]
[1764509541579,0.56261812,140.02,140.0,60.23101753]
[1764509541783,3.42,140.15,140.01,39.64521534]
[1764509541995,96.45999499,140.18,140.07,69.28519406]
[1764509542201,3.42,140.17,140.1,15.23669638]
[1764509542404,75.0,140.16,140.11,4.63130211]
[1764509542591,24.97324295,140.15,140.13,19.04167176]
[1764509542809,28.39324295,140.15,140.14,4.63130211]
[1764509543000,75.0,140.15,140.12,19.04167176]
[1764509543202,39.07284156,140.33,140.02,7.14183688]
[1764509543203,0.66,140.14,140.02,7.14183688]
[1764509543409,3.42,140.13,140.02,24.99642908]
[1764509543594,3.42,140.13,140.02,60.70561348]
[1764509543791,0.66,140.14,140.02,60.70561348]
[1764509543996,3.42,140.15,140.03,0.69]
[1764509544210,0.66,140.17,140.03,79.11]
[1764509544520,3.42,140.21,140.06,24.98929029]
[1764509544810,3.42,140.21,140.06,7.13979722]
[1764509544988,4.08,140.2,140.07,1.99999999]
[1764509545189,0.66,140.2,140.07,1.99999999]
[1764509545399,4.08,140.19,140.09,1.99999999]
[1764509545599,4.08,140.19,140.1,1.99999999]
[1764509545802,0.66,140.18,140.09,1.99999999]
[1764509546003,0.66,140.18,140.06,1.99999999]
[1764509546214,3.42,140.17,140.06,1.99999999]
[1764509546458,24.97146118,140.16,140.01,1.99999999]
[1764509546738,24.97146118,140.16,140.04,1.99999999]
[1764509546947,24.97146118,140.16,140.07,1.99999999]
[1764509546948,0.66,140.15,140.07,1.99999999]
[1764509547125,4.08,140.15,140.06,1.99999999]
[1764509547330,4.08,140.15,140.04,1.99999999]
[1764509547524,0.66,140.14,140.04,1.99999999]
[1764509547917,0.66,140.14,140.0,1.99999999]
[1764509548143,0.66,140.14,139.98,2.19999999]
[1764509548333,0.66,140.14,140.03,1.99999999]
[1764509548647,24.97680724,140.13,140.03,1.99999999]
[1764509548853,28.39680724,140.13,140.03,1.99999999]
[1764509549022,0.66,140.12,140.02,1.99999999]
[1764509549423,3.42,140.11,140.01,1.99999999]
[1764509549637,3.42,140.1,140.01,1.99999999]
[1764509550171,24.98572244,140.08,139.98,2.19999999]
[1764509550442,4.06,140.07,139.98,2.19999999]
[1764509550830,16.308864,140.05,139.98,0.2]
[1764509551220,24.98572244,140.08,140.01,1.99999999]
[1764509551745,4.06,140.07,140.02,1.99999999]
[1764509552120,7.14030703,140.05,140.02,1.99999999]
[1764509552748,3.4,140.04,140.02,1.99999999]
[1764509553131,0.66,140.03,139.99,1.99999999]
[1764509553441,0.66,140.03,139.98,0.2]
[1764509553442,0.66,140.03,139.98,2.19999999]
[1764509553828,75.0,140.15,139.98,2.19999999]
[1764509553829,0.66,140.26,140.12,75.0]
[1764509554033,4.1,140.26,140.2,1.99999999]
[1764509554219,7.13012477,140.25,140.2,1.99999999]
[1764509554423,24.61543671,140.25,140.18,1.99999999]
[1764509554625,24.61543671,140.25,140.2,1.99999999]
[1764509554626,4.1,140.24,140.2,1.99999999]
[1764509554842,0.66,140.23,140.2,1.99999999]
[1764509555018,0.66,140.23,140.17,1.99999999]
[1764509555219,0.66,140.23,140.19,1.99999999]
[1764509555424,0.66,140.23,140.14,11.09426805]
[1764509555726,0.66,140.23,140.17,1.99999999]
[1764509555926,3.44,140.22,140.17,1.99999999]
[1764509556133,24.96077591,140.22,140.13,1.99999999]
[1764509556348,0.66,140.23,139.85,35.33686114]
[1764509556349,3.44,140.23,140.2,1.99999999]
[1764509556644,4.1,140.22,140.17,1.99999999]
[1764509556822,4.1,140.22,140.13,1.99999999]
[1764509557021,0.66,140.21,140.08,1.99999999]
[1764509557247,0.66,140.21,140.09,1.99999999]
[1764509557448,0.66,140.21,140.12,1.99999999]
[1764509557691,3.44,140.2,140.13,1.99999999]
[1764509558047,0.66,140.19,140.09,1.99999999]
[1764509558246,24.96789841,140.18,140.13,1.99999999]
[1764509558446,24.96789841,140.18,140.11,1.99999999]
[1764509558647,4.1,140.17,140.13,1.99999999]
[1764509558858,3.44,140.16,140.14,1.99999999]
[1764509559035,4.1,140.16,140.13,1.99999999]
[1764509559361,0.66,140.15,140.14,1.99999999]
[1764509559557,24.96789841,140.18,140.03,2.0]
[1764509559558,7.13368526,140.18,140.16,1.99999999]
[1764509559764,3.44,140.17,140.16,1.99999999]
[1764509560061,4.1,140.17,140.1,1.99999999]
[1764509560237,24.97324295,140.15,140.1,1.99999999]
[1764509560436,24.97324295,140.15,140.14,1.99999999]
[1764509560637,25.63324295,140.15,140.14,1.99999999]
[1764509560850,25.63324295,140.15,140.1,1.99999999]
[1764509561055,25.63324295,140.15,140.12,1.99999999]
[1764509561229,0.66,140.14,140.12,1.99999999]
[1764509561434,16.968864,140.14,140.04,1.99999999]
[1764509561657,16.968864,140.14,139.98,0.2]
[1764509561658,16.308864,140.12,140.03,1.99999999]
[1764509561853,3.44,140.11,140.03,1.99999999]
[1764509562055,0.66,140.11,140.03,1.99999999]
[1764509562236,0.66,140.11,139.98,0.2]
[1764509562237,4.1,140.1,140.04,1.99999999]
[1764509562442,60.67528017,140.09,140.04,1.99999999]
[1764509562644,61.33528017,140.09,140.04,1.99999999]
[1764509562956,0.66,140.08,140.04,1.99999999]
[1764509563150,3.44,140.07,140.04,1.99999999]
[1764509563553,7.79979722,140.06,140.04,1.99999999]
[1764509563871,3.42,140.05,140.04,1.99999999]
[1764509564156,4.08,140.05,140.04,1.99999999]
[1764509564365,7.13979722,140.06,140.05,1.99999999]
[1764509564547,10.55979722,140.06,140.05,1.99999999]
[1764509565344,24.98705033,140.08,140.07,1.99999999]
[1764509565549,0.66,140.13,140.08,1.99999999]
[1764509565752,3.42,140.12,140.08,1.99999999]
[1764509566065,0.66,140.14,139.98,0.2]
[1764509566066,3.42,140.11,140.1,1.99999999]
[1764509566263,0.66,140.14,140.09,1.99999999]
[1764509566468,3.42,140.11,140.1,1.99999999]
[1764509567142,10.5572493,140.11,140.1,1.99999999]
[1764509567749,11.2172493,140.11,140.07,1.99999999]
[1764509567949,11.2172493,140.11,140.09,1.99999999]
[1764509568155,11.2172493,140.11,140.08,1.99999999]
[1764509568355,11.2172493,140.11,140.09,1.99999999]
[1764509569471,29.06037256,140.11,140.09,1.99999999]
[1764509569668,0.66,140.14,140.09,1.99999999]
[1764509569850,0.66,140.14,140.1,1.99999999]
[1764509570052,3.42,140.13,140.1,1.99999999]
[1764509570563,0.66,140.12,140.1,1.99999999]
[1764509570741,3.42,140.11,140.1,1.99999999]
[1764509570946,3.42,140.11,140.08,1.99999999]
[1764509571268,10.5572493,140.11,140.08,1.99999999]
[1764509571574,11.2172493,140.11,140.1,1.99999999]
[1764509572964,25.64037256,140.11,140.1,1.99999999]
[1764509573157,29.06037256,140.11,140.1,1.99999999]
[1764509573761,0.66,140.1,139.98,0.2]
[1764509574171,3.42,140.09,139.98,0.2]
[1764509574371,3.42,140.09,139.99,8.80994492]
[1764509574567,0.66,140.08,139.99,8.80994492]
[1764509574772,3.4,140.07,139.99,8.80994492]
[1764509575064,3.4,140.07,139.98,0.2]
[1764509575065,0.66,140.06,139.98,0.2]
[1764509575375,24.99107461,140.05,139.98,0.2]
[1764509575751,25.66107461,140.05,139.98,0.2]
[1764509575971,0.67,140.04,139.98,0.2]
[1764509576172,3.4,140.03,139.98,0.2]
[1764509576574,4.07,140.03,139.98,0.2]
[1764509577073,0.67,140.02,139.98,0.2]
[1764509577577,7.14234697,140.01,139.98,0.2]
[1764509578391,0.67,140.0,139.98,0.2]
[1764509578557,3.4,139.99,139.98,0.2]
[1764509580382,4.07,139.99,139.98,0.2]
[1764509580556,0.67,139.99,139.98,0.2]
[1764509580758,3.4,139.99,139.98,0.2]
[1764509580960,4.07,139.99,139.98,0.2]
[1764509581488,28.40178583,139.99,139.84,33.55992914]
[1764509581686,0.67,139.98,139.83,1.99999999]
[1764509582078,0.67,139.98,139.84,16.308864]
[1764509582264,0.67,139.98,139.81,75.0]
[1764509582667,25.00535828,139.97,139.85,0.14216157]
[1764509583284,0.67,139.96,139.85,0.14216157]
[1764509583478,3.4,139.95,139.88,16.308864]
[1764509583675,25.01071886,139.94,139.85,8.95210649]
[1764509583891,3.4,139.93,139.82,8.80994492]
[1764509584065,4.07,139.93,139.86,8.80994492]
[1764509584383,4.07,139.93,139.91,5.03828651]
[1764509584577,4.07,139.93,139.92,5.03828651]
[1764509584786,4.07,139.93,139.87,0.14216157]
[1764509584976,7.1469411,139.92,139.87,0.28432314]
[1764509585487,3.4,139.91,139.87,0.28432314]
[1764509585785,3.4,139.91,139.86,8.80994492]
[1764509586492,10.54745193,139.91,139.86,8.80994492]
[1764509586675,10.52745193,139.91,139.86,8.80994492]
[1764509587467,29.06608176,139.91,139.76,5.41684377]
[1764509587668,0.67,139.9,139.75,0.2]
[1764509587878,0.67,139.9,139.79,16.308864]
[1764509588084,0.67,139.9,139.75,16.508864]
[1764509588280,16.978864,139.9,139.72,5.41684377]
[1764509588484,16.978864,139.9,139.71,0.2]
[1764509588485,16.978864,139.9,139.71,5.61684377]
[1764509588798,25.6896583,139.89,139.71,0.2]
[1764509588962,3.4,139.88,139.72,5.61684377]
[1764509589162,0.67,139.88,139.75,9.09426806]
[1764509589380,25.0196583,139.89,139.81,8.80994492]
[1764509589596,3.4,139.88,139.82,0.28432314]
[1764509589791,25.0196583,139.89,139.82,0.28432314]
[1764509590002,3.4,139.88,139.81,8.80994492]
[1764509590292,0.67,139.89,139.81,8.80994492]
[1764509590673,3.4,139.88,139.81,8.80994492]
[1764509590876,0.67,139.89,139.81,8.80994492]
[1764509591280,3.38,139.88,139.81,8.80994492]
[1764509591470,3.38,139.87,139.81,8.80994492]
[1764509591669,25.01250624,139.93,139.85,8.80994492]
[1764509591877,4.05,139.92,139.82,0.2]
[1764509592097,4.05,139.92,139.83,0.2]
[1764509592292,25.68608176,139.91,139.83,0.2]
[1764509592795,0.67,139.9,139.83,0.2]
[1764509592986,0.67,139.93,139.83,0.2]
[1764509593297,17.85969424,139.98,139.83,0.2]
[1764509593298,3.38,139.92,139.83,0.2]
[1764509593595,0.67,139.97,139.83,0.2]
[1764509593771,0.67,139.97,139.85,0.28432314]
[1764509593965,7.14336738,139.99,139.92,8.80994492]
[1764509594171,7.14336738,139.99,139.93,0.28432314]
[1764509594467,25.00178583,139.99,139.93,0.28432314]
[1764509594676,17.14,140.0,139.95,9.09426806]
[1764509595005,0.67,140.08,139.95,25.40313206]
[1764509595204,3.38,140.03,139.96,0.2]
[1764509595384,3.38,140.03,139.99,16.308864]
[1764509595590,7.240943,140.04,139.99,16.308864]
[1764509595776,7.240943,140.04,140.0,9.29426806]
[1764509595777,0.1,140.04,140.0,9.29426806]
[1764509595975,3.38,140.03,140.0,9.29426806]
[1764509596798,3.38,140.03,140.0,9.09426806]
[1764509597003,10.52134921,140.03,140.0,9.09426806]
[1764509597202,7.14134921,140.03,139.96,9.09426806]
[1764509597509,3.38,140.02,140.0,9.29426806]
[1764509598005,3.38,140.02,140.0,9.09426806]
[1764509598308,0.1,140.04,140.01,0.2]
[1764509598603,3.38,140.02,140.01,0.2]
[1764509598975,7.24082859,140.04,140.0,9.09426806]
[1764509599177,3.38,140.02,140.0,9.29426806]
[1764509599572,3.38,140.02,140.0,9.09426806]
[1764509599896,0.67,140.01,139.93,0.2]
[1764509600277,0.67,140.01,139.88,75.0]
[1764509600278,0.67,140.01,139.91,0.2]
[1764509600476,28.37999999,140.0,139.92,8.80994492]
[1764509600703,7.14285714,140.0,139.93,0.2]
[1764509600904,3.38,139.99,139.93,0.2]
[1764509601077,35.80408454,140.04,139.96,9.09426806]
[1764509601078,17.85509525,140.02,139.96,9.09426806]
[1764509601278,3.38,140.01,139.96,9.09426806]
[1764509601703,3.38,140.01,139.96,9.29426806]
[1764509602084,10.52243936,140.01,139.96,9.29426806]
[1764509603201,3.38,140.0,139.96,9.29426806]
[1764509604293,7.14249431,140.01,139.96,9.29426806]
[1764509604498,7.14249431,140.01,139.9,155.41684377]
[1764509604499,3.38,140.0,139.9,5.41684377]
[1764509604802,3.38,140.0,139.93,25.11880892]
[1764509605006,4.05,140.0,139.93,25.11880892]
[1764509605212,0.67,139.99,139.9,0.2]
[1764509605692,0.67,139.99,139.9,9.00994492]
[1764509606020,3.38,139.98,139.9,9.00994492]
[1764509606306,3.38,139.97,139.91,0.2]
[1764509606509,4.05,139.97,139.88,0.2]
[1764509606812,0.67,139.96,139.9,16.308864]
[1764509608212,25.00893175,139.95,139.85,8.80994492]
[1764509608594,4.03,139.94,139.84,0.2]
[1764509608795,4.03,139.94,139.85,8.80994492]
[1764509608993,0.67,139.93,139.85,8.80994492]
[1764509609516,3.36,139.92,139.85,9.00994492]
[1764509609821,25.01608176,139.91,139.86,0.28432314]
[1764509610184,25.68608176,139.91,139.86,0.28432314]
[1764509610610,3.36,139.9,139.86,0.28432314]
[1764509610815,35.71926099,139.99,139.89,9.09426806]
[1764509611018,4.03,139.98,139.89,9.09426806]
[1764509611313,29.03357193,139.98,139.89,9.29426806]
[1764509611810,0.67,139.97,139.89,9.29426806]
[1764509613101,25.00714489,139.96,139.89,9.29426806]
[1764509613806,25.67714489,139.96,139.89,9.29426806]
[1764509614114,0.67,139.95,139.89,9.09426806]
[1764509614419,3.36,139.94,139.89,9.09426806]
[1764509615093,7.14643035,139.93,139.89,9.29426806]
[1764509616201,7.14643035,139.93,139.89,9.09426806]
[1764509616695,7.14643035,139.93,139.89,9.29426806]
[1764509617693,7.14554084,139.95,139.9,0.2]
[1764509617894,3.36,139.94,139.9,0.2]
[1764509618891,3.36,139.93,139.9,0.2]
[1764509619102,3.36,139.92,139.91,16.308864]
[1764509619707,0.67,140.02,139.93,0.28432314]
[1764509620019,3.36,140.01,139.93,0.28432314]
[1764509620195,3.36,140.01,139.94,0.2]
[1764509620390,24.99464399,140.03,139.94,0.2]
[1764509620586,3.36,140.02,139.95,25.40313206]
[1764509620789,24.99464399,140.03,139.95,25.40313206]
[1764509621013,3.36,140.02,139.96,0.2]
[1764509621313,17.85331714,140.03,139.96,0.2]
[1764509621520,3.36,140.01,139.96,0.2]
[1764509622520,7.14245278,140.01,139.96,0.2]
[1764509622816,3.34,140.0,139.96,0.2]
[1764509623424,10.48305166,140.0,139.96,0.2]
[1764509623923,3.34,139.99,139.95,25.40313206]
[1764509624231,3.34,139.99,139.95,25.60313206]
[1764509624727,4.01,139.99,139.95,25.11880892]
[1764509624910,4.01,139.99,139.96,0.14216157]
[1764509625111,3.34,139.99,139.96,0.28432314]
[1764509625312,3.34,139.99,139.96,0.48432314]
[1764509627119,3.34,139.99,139.96,0.28432314]
[1764509628632,10.4835225,139.99,139.96,0.28432314]
[1764509630223,11.1535225,139.99,139.96,0.28432314]
[1764509630802,10.4835225,139.99,139.96,0.28432314]
[1764509631223,7.1435225,139.99,139.96,0.28432314]
[1764509631436,3.34,139.98,139.96,0.28432314]
[1764509632624,10.4839441,139.98,139.96,0.28432314]
[1764509633642,3.34,139.97,139.96,0.28432314]
[1764509636843,10.48463236,139.97,139.95,25.11880892]
[1764509637047,0.71,139.99,139.96,0.28432314]
[1764509637218,3.32,139.98,139.96,0.28432314]
[1764509639249,34.79557132,140.04,139.96,0.28432314]
[1764509639557,3.32,140.03,139.96,0.28432314]
[1764509640455,28.31464399,140.03,139.96,0.28432314]
[1764509640828,60.67961164,140.08,139.96,0.28432314]
[1764509641332,4.03,140.07,140.01,8.80994492]
[1764509641528,60.67961164,140.08,140.02,0.28432314]
[1764509641529,24.98572244,140.08,140.02,0.28432314]
[1764509641733,4.03,140.07,140.01,8.80994492]
[1764509641945,3.32,140.06,140.02,0.28432314]
[1764509642424,4.03,140.06,140.02,0.28432314]
[1764509642629,7.14030703,140.05,140.02,0.28432314]
[1764509643056,3.32,140.04,140.02,0.28432314]
[1764509643354,3.32,140.04,140.01,8.80994492]
[1764509643647,3.32,140.04,140.0,0.28432314]
[1764509643855,4.03,140.04,140.0,25.40313206]
[1764509644053,0.71,140.03,140.0,25.40313206]
[1764509644765,7.14183688,140.02,139.95,5.7527961]
[1764509644934,7.14183688,140.02,139.91,5.7527961]